[Event "Early-Titled-Tuesday-Blitz-January-16-2024"]
[Site "Chess.com"]
[Date "2024.01.16"]
[Round "9"]
[White "Volodar_Murzin"]
[Black "GMRAVEN_ON_YOUTUBE"]
[Result "1-0"]
[WhiteElo "2939"]
[BlackElo "2821"]
[TimeControl "180+1"]
[EndTime "9:45:24 PST"]
[Termination "Volodar_Murzin won by checkmate"]

1. d4 {[%clk 0:03:00.9]} 1... f5 {[%clk 0:02:59.8]} 2. Nf3 {[%clk 0:03:01.6]}
2... Nf6 {[%clk 0:03:00.3]} 3. Bg5 {[%clk 0:02:58]} 3... e6 {[%clk 0:02:55.9]}
4. Nbd2 {[%clk 0:02:57.1]} 4... Be7 {[%clk 0:02:47.9]} 5. Bxf6 {[%clk 0:02:53]}
5... Bxf6 {[%clk 0:02:48.1]} 6. e4 {[%clk 0:02:53.9]} 6... fxe4 {[%clk
0:02:39.9]} 7. Nxe4 {[%clk 0:02:54.8]} 7... O-O {[%clk 0:02:40.3]} 8. Bd3 {[%clk
0:02:54]} 8... Nc6 {[%clk 0:02:37.7]} 9. c3 {[%clk 0:02:49.4]} 9... d6 {[%clk
0:02:16.5]} 10. h4 {[%clk 0:02:47.9]} 10... e5 {[%clk 0:02:12.4]} 11. d5 {[%clk
0:02:31.1]} 11... Ne7 {[%clk 0:02:11.1]} 12. Nfg5 {[%clk 0:02:30.3]} 12... h6
{[%clk 0:02:04.6]} 13. Qh5 {[%clk 0:01:45.1]} 13... Nxd5 {[%clk 0:01:50.9]} 14.
Qg6 {[%clk 0:01:27.1]} 14... Re8 {[%clk 0:01:47.6]} 15. Qf7+ {[%clk 0:01:21.2]}
15... Kh8 {[%clk 0:01:47.7]} 16. Qxd5 {[%clk 0:01:21.4]} 16... c6 {[%clk
0:01:47.7]} 17. Nf7+ {[%clk 0:01:20.7]} 17... Kg8 {[%clk 0:01:44.1]} 18. Nxh6+
{[%clk 0:00:52.1]} 18... Kh7 {[%clk 0:01:40.8]} 19. Nxf6+ {[%clk 0:00:46.1]}
19... Kxh6 {[%clk 0:01:39.7]} 20. Qe4 {[%clk 0:00:46.1]} 20... Qxf6 {[%clk
0:01:34.5]} 21. Qh7# {[%clk 0:00:45.4]} 1-0

[Event "Early-Titled-Tuesday-Blitz-January-16-2024"]
[Site "Chess.com"]
[Date "2024.01.16"]
[Round "9"]
[White "ural58"]
[Black "NinoMaisuradze"]
[Result "0-1"]
[WhiteElo "2476"]
[BlackElo "2333"]
[TimeControl "180+1"]
[EndTime "9:45:24 PST"]
[Termination "NinoMaisuradze won by resignation"]

1. e4 {[%clk 0:02:57]} 1... c5 {[%clk 0:03:00]} 2. b3 {[%clk 0:02:55.9]} 2... g6
{[%clk 0:02:52.3]} 3. Bb2 {[%clk 0:02:53.6]} 3... Nf6 {[%clk 0:02:52.7]} 4. e5
{[%clk 0:02:41.2]} 4... Nd5 {[%clk 0:02:52.3]} 5. Nc3 {[%clk 0:02:40.4]} 5...
Nxc3 {[%clk 0:02:50.4]} 6. Bxc3 {[%clk 0:02:38.4]} 6... Bg7 {[%clk 0:02:50.7]}
7. h4 {[%clk 0:02:38.4]} 7... h5 {[%clk 0:02:49.8]} 8. Bd3 {[%clk 0:02:18.6]}
8... O-O {[%clk 0:02:36.6]} 9. g4 {[%clk 0:02:00.7]} 9... d5 {[%clk 0:02:12.9]}
10. gxh5 {[%clk 0:01:58.6]} 10... d4 {[%clk 0:02:10.5]} 11. hxg6 {[%clk
0:01:52.1]} 11... dxc3 {[%clk 0:01:56.6]} 12. Qh5 {[%clk 0:01:38.1]} 12... cxd2+
{[%clk 0:01:56]} 13. Kd1 {[%clk 0:01:34.5]} 13... fxg6 {[%clk 0:01:52.5]} 14.
Bxg6 {[%clk 0:01:30.5]} 14... Rf4 {[%clk 0:01:47.5]} 15. Ne2 {[%clk 0:01:20.8]}
15... Bg4 {[%clk 0:01:44.6]} 16. Qh7+ {[%clk 0:01:17]} 16... Kf8 {[%clk
0:01:44.4]} 17. Bd3 {[%clk 0:01:06.1]} 17... Qd4 {[%clk 0:01:34.1]} 18. Kxd2
{[%clk 0:01:03.7]} 18... Bxe2 {[%clk 0:01:31.3]} 19. Kxe2 {[%clk 0:01:03]} 19...
Rxf2+ {[%clk 0:01:29.7]} 20. Ke1 {[%clk 0:01:01.7]} 20... Qe3+ {[%clk
0:01:29.2]} 0-1

[Event "Early-Titled-Tuesday-Blitz-January-16-2024"]
[Site "Chess.com"]
[Date "2024.01.16"]
[Round "9"]
[White "marina1994"]
[Black "DraningWaterHi"]
[Result "1-0"]
[WhiteElo "2529"]
[BlackElo "2182"]
[TimeControl "180+1"]
[EndTime "9:45:30 PST"]
[Termination "marina1994 won by resignation"]

1. e4 {[%clk 0:03:00.9]} 1... e5 {[%clk 0:02:56.4]} 2. Nf3 {[%clk 0:03:00.1]}
2... Nc6 {[%clk 0:02:54.2]} 3. Bc4 {[%clk 0:03:00]} 3... Nf6 {[%clk 0:02:54]} 4.
d3 {[%clk 0:03:00]} 4... Bc5 {[%clk 0:02:53.1]} 5. c3 {[%clk 0:02:59.6]} 5... a6
{[%clk 0:02:52.6]} 6. Bb3 {[%clk 0:02:58.5]} 6... d6 {[%clk 0:02:51.7]} 7. Nbd2
{[%clk 0:02:56.9]} 7... O-O {[%clk 0:02:50.2]} 8. h3 {[%clk 0:02:56.2]} 8... Ba7
{[%clk 0:02:49.2]} 9. Nf1 {[%clk 0:02:48.7]} 9... Ne7 {[%clk 0:02:45.1]} 10. Ng3
{[%clk 0:02:45.6]} 10... Ng6 {[%clk 0:02:43.4]} 11. O-O {[%clk 0:02:40.3]} 11...
Be6 {[%clk 0:02:34.6]} 12. d4 {[%clk 0:02:34]} 12... Bxb3 {[%clk 0:02:23.2]} 13.
axb3 {[%clk 0:02:31.3]} 13... Qe7 {[%clk 0:02:18.2]} 14. b4 {[%clk 0:02:30.6]}
14... Rad8 {[%clk 0:02:15.1]} 15. Bg5 {[%clk 0:02:25.9]} 15... h6 {[%clk
0:02:14.9]} 16. Nf5 {[%clk 0:02:16.2]} 16... Qe6 {[%clk 0:02:08.5]} 17. d5
{[%clk 0:02:15.3]} 17... Qd7 {[%clk 0:01:50.1]} 18. Bxf6 {[%clk 0:02:14.9]}
18... gxf6 {[%clk 0:01:50.1]} 19. Nxh6+ {[%clk 0:02:14.2]} 19... Kh7 {[%clk
0:01:50.8]} 20. Nf5 {[%clk 0:02:11.9]} 20... Nf4 {[%clk 0:01:51.1]} 21. Nh2
{[%clk 0:02:06.5]} 21... Rg8 {[%clk 0:01:49.9]} 22. Ng4 {[%clk 0:02:06.1]} 22...
Rg6 {[%clk 0:01:44.9]} 23. Qf3 {[%clk 0:02:02.5]} 23... Rdg8 {[%clk 0:01:44]}
24. Kh2 {[%clk 0:01:57.7]} 24... Qd8 {[%clk 0:01:31.5]} 25. g3 {[%clk
0:01:57.4]} 25... Nh5 {[%clk 0:01:27.4]} 26. b5 {[%clk 0:01:52.7]} 26... Rg5
{[%clk 0:01:20.3]} 27. bxa6 {[%clk 0:01:51.4]} 27... b5 {[%clk 0:01:20.3]} 28.
Ngh6 {[%clk 0:01:37.1]} 1-0

[Event "Early-Titled-Tuesday-Blitz-January-16-2024"]
[Site "Chess.com"]
[Date "2024.01.16"]
[Round "9"]
[White "publicaccountcze"]
[Black "Shuvalov"]
[Result "0-1"]
[WhiteElo "2319"]
[BlackElo "2504"]
[TimeControl "180+1"]
[EndTime "9:45:31 PST"]
[Termination "Shuvalov won by checkmate"]

1. e4 {[%clk 0:02:55.5]} 1... e6 {[%clk 0:02:59.8]} 2. d4 {[%clk 0:02:55.1]}
2... d5 {[%clk 0:02:59.8]} 3. Nd2 {[%clk 0:02:55.7]} 3... c5 {[%clk 0:02:59.5]}
4. Ngf3 {[%clk 0:02:54.7]} 4... Nc6 {[%clk 0:02:58.6]} 5. c3 {[%clk 0:02:53.5]}
5... cxd4 {[%clk 0:02:52.4]} 6. cxd4 {[%clk 0:02:52.1]} 6... Qb6 {[%clk
0:02:52.5]} 7. exd5 {[%clk 0:02:47.4]} 7... exd5 {[%clk 0:02:52.2]} 8. Nb3
{[%clk 0:02:40.5]} 8... Nf6 {[%clk 0:02:50.2]} 9. Bd3 {[%clk 0:02:33.6]} 9...
Bb4+ {[%clk 0:02:46.8]} 10. Bd2 {[%clk 0:02:33.3]} 10... O-O {[%clk 0:02:46.4]}
11. O-O {[%clk 0:02:33.1]} 11... Bg4 {[%clk 0:02:45.2]} 12. Bxb4 {[%clk
0:02:27.4]} 12... Nxb4 {[%clk 0:02:42.7]} 13. Be2 {[%clk 0:02:27.1]} 13... Nc6
{[%clk 0:02:39.5]} 14. h3 {[%clk 0:01:40.2]} 14... Bh5 {[%clk 0:02:37.4]} 15.
Rc1 {[%clk 0:01:23.5]} 15... Rfe8 {[%clk 0:02:35.3]} 16. Re1 {[%clk 0:01:20]}
16... Ne4 {[%clk 0:02:32.5]} 17. Nfd2 {[%clk 0:01:13.8]} 17... Bxe2 {[%clk
0:02:13.2]} 18. Qxe2 {[%clk 0:01:14.7]} 18... Nxd4 {[%clk 0:02:09.8]} 19. Nxd4
{[%clk 0:01:09.5]} 19... Qxd4 {[%clk 0:02:10.7]} 20. Nb3 {[%clk 0:01:04.3]}
20... Qb6 {[%clk 0:02:07.7]} 21. Rcd1 {[%clk 0:00:56.4]} 21... Rad8 {[%clk
0:02:03.9]} 22. Kf1 {[%clk 0:00:53.4]} 22... Rd6 {[%clk 0:01:54.9]} 23. Qd3
{[%clk 0:00:24.6]} 23... Qxf2# {[%clk 0:01:53.3]} 0-1

[Event "Early-Titled-Tuesday-Blitz-January-16-2024"]
[Site "Chess.com"]
[Date "2024.01.16"]
[Round "9"]
[White "Cheer_Down"]
[Black "the_blue_pill"]
[Result "1-0"]
[WhiteElo "2505"]
[BlackElo "2337"]
[TimeControl "180+1"]
[EndTime "9:45:52 PST"]
[Termination "Cheer_Down won by resignation"]

1. d4 {[%clk 0:03:00.9]} 1... d5 {[%clk 0:02:56.7]} 2. Bf4 {[%clk 0:03:00.2]}
2... e6 {[%clk 0:02:44.3]} 3. e3 {[%clk 0:03:00]} 3... Bd6 {[%clk 0:02:45.1]} 4.
Bg3 {[%clk 0:03:00.2]} 4... Nf6 {[%clk 0:02:44.9]} 5. Nf3 {[%clk 0:02:59.2]}
5... O-O {[%clk 0:02:42.7]} 6. Nbd2 {[%clk 0:02:57.6]} 6... c5 {[%clk
0:02:39.8]} 7. dxc5 {[%clk 0:02:57.4]} 7... Bxc5 {[%clk 0:02:39.2]} 8. a3 {[%clk
0:02:56.6]} 8... Nc6 {[%clk 0:02:37.6]} 9. Be2 {[%clk 0:02:53.3]} 9... d4 {[%clk
0:02:34.9]} 10. Nb3 {[%clk 0:02:48.1]} 10... Bb6 {[%clk 0:02:28.3]} 11. Nbxd4
{[%clk 0:02:45.1]} 11... Nxd4 {[%clk 0:02:28]} 12. exd4 {[%clk 0:02:40.2]} 12...
Ne4 {[%clk 0:02:17.3]} 13. O-O {[%clk 0:02:38.3]} 13... Nxg3 {[%clk 0:02:17]}
14. hxg3 {[%clk 0:02:38.6]} 14... Bd7 {[%clk 0:02:12.3]} 15. c3 {[%clk 0:02:38]}
15... Bc6 {[%clk 0:02:11.2]} 16. Ne5 {[%clk 0:02:38]} 16... f6 {[%clk
0:02:09.8]} 17. Nxc6 {[%clk 0:02:37.3]} 17... bxc6 {[%clk 0:02:09.4]} 18. Bc4
{[%clk 0:02:34.4]} 18... Re8 {[%clk 0:02:08.8]} 19. Qg4 {[%clk 0:02:30.5]} 19...
Qd6 {[%clk 0:02:07.4]} 20. Rfe1 {[%clk 0:02:29]} 20... Kh8 {[%clk 0:02:06.9]}
21. Rxe6 {[%clk 0:02:27.9]} 21... Rxe6 {[%clk 0:02:05.8]} 22. Qxe6 {[%clk
0:02:28]} 22... Qxe6 {[%clk 0:02:03.9]} 23. Bxe6 {[%clk 0:02:28.9]} 23... Re8
{[%clk 0:02:01.9]} 24. Bc4 {[%clk 0:02:27.9]} 24... c5 {[%clk 0:02:00.5]} 25.
dxc5 {[%clk 0:02:21.1]} 25... Bxc5 {[%clk 0:02:00.4]} 26. Kf1 {[%clk 0:02:20.1]}
26... Bb6 {[%clk 0:01:58.1]} 27. Rd1 {[%clk 0:02:17.7]} 27... g6 {[%clk
0:01:50.9]} 28. Rd7 {[%clk 0:02:16.3]} 28... Rd8 {[%clk 0:01:45.7]} 29. Rxd8+
{[%clk 0:02:15.8]} 29... Bxd8 {[%clk 0:01:45.2]} 30. Ke2 {[%clk 0:02:15.6]}
30... Kg7 {[%clk 0:01:40.8]} 31. Bd5 {[%clk 0:02:12.5]} 31... f5 {[%clk
0:01:40.7]} 32. f3 {[%clk 0:02:10.6]} 32... Bc7 {[%clk 0:01:38.9]} 33. g4 {[%clk
0:02:10.5]} 33... fxg4 {[%clk 0:01:38.7]} 34. fxg4 {[%clk 0:02:11.4]} 34... Kf6
{[%clk 0:01:38.8]} 35. Kd3 {[%clk 0:02:10.6]} 35... Ke5 {[%clk 0:01:38.7]} 36.
Bf3 {[%clk 0:02:10.7]} 36... g5 {[%clk 0:01:35.3]} 37. b4 {[%clk 0:02:09]} 37...
h6 {[%clk 0:01:25.7]} 38. c4 {[%clk 0:02:08.6]} 38... a5 {[%clk 0:01:22.3]} 39.
c5 {[%clk 0:02:07.8]} 39... axb4 {[%clk 0:01:22.2]} 40. axb4 {[%clk 0:02:07.7]}
40... Bd8 {[%clk 0:01:22.4]} 41. Kc4 {[%clk 0:02:07.5]} 41... Ke6 {[%clk
0:01:17]} 42. b5 {[%clk 0:02:06.4]} 42... Kd7 {[%clk 0:01:17.4]} 43. b6 {[%clk
0:02:04.7]} 43... Kc8 {[%clk 0:01:13.3]} 44. Kb5 {[%clk 0:02:04.4]} 44... Kb8
{[%clk 0:01:10.9]} 45. Be4 {[%clk 0:02:03.6]} 45... Kc8 {[%clk 0:01:10]} 46.
Bf5+ {[%clk 0:02:01.5]} 46... Kb8 {[%clk 0:01:10.1]} 47. Kc6 {[%clk 0:02:01.4]}
47... Bf6 {[%clk 0:01:06.7]} 48. Kb5 {[%clk 0:01:59.2]} 48... Bd8 {[%clk
0:01:05.5]} 49. c6 {[%clk 0:01:58.9]} 1-0

[Event "Early-Titled-Tuesday-Blitz-January-16-2024"]
[Site "Chess.com"]
[Date "2024.01.16"]
[Round "9"]
[White "TrahtarBelarus"]
[Black "Talent-OF-Slovenia"]
[Result "1-0"]
[WhiteElo "2879"]
[BlackElo "2421"]
[TimeControl "180+1"]
[EndTime "9:45:58 PST"]
[Termination "TrahtarBelarus won by resignation"]

1. a3 {[%clk 0:03:00.9]} 1... c5 {[%clk 0:02:59.1]} 2. c4 {[%clk 0:02:59.3]}
2... Nc6 {[%clk 0:02:58.1]} 3. Nc3 {[%clk 0:02:57]} 3... Nf6 {[%clk 0:02:54.6]}
4. g3 {[%clk 0:02:56.5]} 4... g6 {[%clk 0:02:54.5]} 5. Bg2 {[%clk 0:02:56.4]}
5... Bg7 {[%clk 0:02:54.6]} 6. Nf3 {[%clk 0:02:53.1]} 6... O-O {[%clk
0:02:54.1]} 7. d3 {[%clk 0:02:42.6]} 7... d5 {[%clk 0:02:53.9]} 8. cxd5 {[%clk
0:02:42.4]} 8... Nxd5 {[%clk 0:02:54.8]} 9. O-O {[%clk 0:02:42.3]} 9... Nxc3
{[%clk 0:02:53.6]} 10. bxc3 {[%clk 0:02:42.8]} 10... Re8 {[%clk 0:02:52.9]} 11.
Rb1 {[%clk 0:02:39.7]} 11... Bxc3 {[%clk 0:02:49.2]} 12. Qc2 {[%clk 0:02:11]}
12... Bg7 {[%clk 0:02:44.5]} 13. Qxc5 {[%clk 0:02:07.9]} 13... Qc7 {[%clk
0:02:39.4]} 14. Bf4 {[%clk 0:02:06.1]} 14... e5 {[%clk 0:02:37.1]} 15. Be3
{[%clk 0:02:04.7]} 15... Be6 {[%clk 0:02:34.7]} 16. Nd2 {[%clk 0:01:58.4]} 16...
Rac8 {[%clk 0:02:30.9]} 17. Qb5 {[%clk 0:01:43.1]} 17... b6 {[%clk 0:02:28.6]}
18. Rfc1 {[%clk 0:01:39.3]} 18... Bd7 {[%clk 0:02:23.4]} 19. Qd5 {[%clk
0:01:20.4]} 19... Qd8 {[%clk 0:02:13.3]} 20. Ne4 {[%clk 0:01:10.8]} 20... Nd4
{[%clk 0:02:01.8]} 21. Bxd4 {[%clk 0:01:08.2]} 21... exd4 {[%clk 0:02:02]} 22.
Nd6 {[%clk 0:00:53.3]} 22... Rxc1+ {[%clk 0:02:01.5]} 23. Rxc1 {[%clk
0:00:52.6]} 23... Rxe2 {[%clk 0:02:00.9]} 24. Qxf7+ {[%clk 0:00:41.3]} 24... Kh8
{[%clk 0:01:59.1]} 25. Qd5 {[%clk 0:00:32.1]} 25... Be6 {[%clk 0:01:37.6]} 26.
Nf7+ {[%clk 0:00:31.8]} 26... Bxf7 {[%clk 0:01:36.4]} 27. Qxd8+ {[%clk
0:00:32.1]} 1-0

[Event "Early-Titled-Tuesday-Blitz-January-16-2024"]
[Site "Chess.com"]
[Date "2024.01.16"]
[Round "9"]
[White "DarZay"]
[Black "PapaieDudu"]
[Result "0-1"]
[WhiteElo "2256"]
[BlackElo "2404"]
[TimeControl "180+1"]
[EndTime "9:46:12 PST"]
[Termination "PapaieDudu won on time"]

1. e4 {[%clk 0:03:00.9]} 1... c5 {[%clk 0:03:00.1]} 2. Nf3 {[%clk 0:03:00.7]}
2... d6 {[%clk 0:03:00.3]} 3. d4 {[%clk 0:03:01]} 3... cxd4 {[%clk 0:03:01.2]}
4. Nxd4 {[%clk 0:03:01.4]} 4... Nf6 {[%clk 0:03:01.7]} 5. Nc3 {[%clk 0:03:01.4]}
5... a6 {[%clk 0:03:01.9]} 6. a4 {[%clk 0:02:58]} 6... e5 {[%clk 0:02:59]} 7.
Nb3 {[%clk 0:02:57.5]} 7... Nc6 {[%clk 0:02:57.5]} 8. a5 {[%clk 0:02:54.5]} 8...
Be6 {[%clk 0:02:54.4]} 9. Be3 {[%clk 0:02:51]} 9... Bxb3 {[%clk 0:02:43.5]} 10.
Bb6 {[%clk 0:02:49.4]} 10... Bxc2 {[%clk 0:02:20.1]} 11. Qxc2 {[%clk 0:02:49.4]}
11... Qc8 {[%clk 0:02:12.4]} 12. Nd5 {[%clk 0:02:40.7]} 12... Be7 {[%clk
0:02:11.2]} 13. Nc7+ {[%clk 0:02:39.7]} 13... Kf8 {[%clk 0:02:10.9]} 14. Nxa8
{[%clk 0:02:39.8]} 14... Qxa8 {[%clk 0:02:09.7]} 15. Bc4 {[%clk 0:02:37.6]}
15... d5 {[%clk 0:02:03.2]} 16. exd5 {[%clk 0:02:30.2]} 16... Bb4+ {[%clk
0:02:03.3]} 17. Kf1 {[%clk 0:02:30]} 17... Ne7 {[%clk 0:01:56.8]} 18. Rd1 {[%clk
0:02:24.6]} 18... Ne8 {[%clk 0:01:51.2]} 19. Qe2 {[%clk 0:02:06.1]} 19... Qc8
{[%clk 0:01:47.5]} 20. b3 {[%clk 0:02:03.5]} 20... Nd6 {[%clk 0:01:40.4]} 21.
Qxe5 {[%clk 0:01:56.8]} 21... Nxc4 {[%clk 0:01:40.1]} 22. bxc4 {[%clk
0:01:56.9]} 22... Qxc4+ {[%clk 0:01:40.1]} 23. Qe2 {[%clk 0:01:38]} 23... Qf4
{[%clk 0:01:38.8]} 0-1

[Event "Early-Titled-Tuesday-Blitz-January-16-2024"]
[Site "Chess.com"]
[Date "2024.01.16"]
[Round "9"]
[White "Journey_to_GrandMaster_YT"]
[Black "MatthewG-p4p"]
[Result "0-1"]
[WhiteElo "2513"]
[BlackElo "2890"]
[TimeControl "180+1"]
[EndTime "9:46:13 PST"]
[Termination "MatthewG-p4p won by resignation"]

1. d4 {[%clk 0:03:00]} 1... h5 {[%clk 0:02:56.5]} 2. e4 {[%clk 0:02:57.2]} 2...
h4 {[%clk 0:02:56.6]} 3. h3 {[%clk 0:02:57.1]} 3... b6 {[%clk 0:02:56.9]} 4. Bd3
{[%clk 0:02:55.8]} 4... Bb7 {[%clk 0:02:57.2]} 5. Nf3 {[%clk 0:02:51.8]} 5... e6
{[%clk 0:02:57.3]} 6. c4 {[%clk 0:02:48.6]} 6... d5 {[%clk 0:02:49.2]} 7. cxd5
{[%clk 0:02:44.2]} 7... exd5 {[%clk 0:02:49.8]} 8. e5 {[%clk 0:02:44.6]} 8... c5
{[%clk 0:02:49.7]} 9. Nc3 {[%clk 0:02:39.1]} 9... Nc6 {[%clk 0:02:43.3]} 10. Bf4
{[%clk 0:02:24.5]} 10... cxd4 {[%clk 0:02:12.8]} 11. Nb5 {[%clk 0:02:23.1]}
11... Bb4+ {[%clk 0:02:11.6]} 12. Kf1 {[%clk 0:02:13.6]} 12... a6 {[%clk
0:01:58]} 13. Nbxd4 {[%clk 0:01:56.6]} 13... Nge7 {[%clk 0:01:53.5]} 14. e6
{[%clk 0:01:41.7]} 14... f6 {[%clk 0:01:37.9]} 15. Qc2 {[%clk 0:01:37.5]} 15...
Bd6 {[%clk 0:01:28.1]} 16. Bg6+ {[%clk 0:01:33.5]} 16... Kf8 {[%clk 0:01:26.7]}
17. Be3 {[%clk 0:01:17.2]} 17... Rc8 {[%clk 0:01:05.2]} 18. Nxc6 {[%clk
0:01:00.7]} 18... Bxc6 {[%clk 0:01:04.8]} 19. Bd3 {[%clk 0:00:56.9]} 19... d4
{[%clk 0:00:58.6]} 20. Bxa6 {[%clk 0:00:44]} 20... Bb5+ {[%clk 0:00:55.4]} 0-1

[Event "Early-Titled-Tuesday-Blitz-January-16-2024"]
[Site "Chess.com"]
[Date "2024.01.16"]
[Round "9"]
[White "Soledadense88"]
[Black "LeoWin2012"]
[Result "1-0"]
[WhiteElo "2403"]
[BlackElo "2243"]
[TimeControl "180+1"]
[EndTime "9:46:18 PST"]
[Termination "Soledadense88 won on time"]

1. d4 {[%clk 0:03:00.9]} 1... Nf6 {[%clk 0:02:55.8]} 2. Nc3 {[%clk 0:03:00.5]}
2... e6 {[%clk 0:02:56.1]} 3. e4 {[%clk 0:03:00.1]} 3... d5 {[%clk 0:02:56.3]}
4. e5 {[%clk 0:03:00.4]} 4... Nfd7 {[%clk 0:02:55.6]} 5. Nce2 {[%clk 0:03:00.6]}
5... c5 {[%clk 0:02:55.8]} 6. c3 {[%clk 0:03:01]} 6... Nc6 {[%clk 0:02:46.6]} 7.
f4 {[%clk 0:03:00.1]} 7... Be7 {[%clk 0:02:37.8]} 8. Nf3 {[%clk 0:02:59.9]} 8...
Qb6 {[%clk 0:02:15.3]} 9. a3 {[%clk 0:02:59.6]} 9... cxd4 {[%clk 0:01:48.3]} 10.
cxd4 {[%clk 0:03:00.5]} 10... Na5 {[%clk 0:01:47]} 11. b4 {[%clk 0:02:17.8]}
11... Nc4 {[%clk 0:01:45.6]} 12. Nc3 {[%clk 0:02:14.1]} 12... a5 {[%clk
0:01:23.9]} 13. b5 {[%clk 0:02:06.8]} 13... a4 {[%clk 0:01:05.6]} 14. Bxc4
{[%clk 0:01:55]} 14... dxc4 {[%clk 0:01:03.7]} 15. O-O {[%clk 0:01:54.6]} 15...
Qa5 {[%clk 0:00:49.9]} 16. Bd2 {[%clk 0:01:48.1]} 16... Qb6 {[%clk 0:00:49.8]}
17. Kh1 {[%clk 0:01:44.6]} 17... f6 {[%clk 0:00:40.6]} 18. d5 {[%clk 0:01:33.3]}
18... exd5 {[%clk 0:00:38.9]} 19. Nxd5 {[%clk 0:01:33.3]} 19... Qc5 {[%clk
0:00:39.7]} 20. Bb4 {[%clk 0:01:27]} 20... Qxb5 {[%clk 0:00:34.3]} 21. Nc7+
{[%clk 0:01:26.8]} 21... Kf8 {[%clk 0:00:06.5]} 22. Nxb5 {[%clk 0:01:27.7]} 1-0

[Event "Early-Titled-Tuesday-Blitz-January-16-2024"]
[Site "Chess.com"]
[Date "2024.01.16"]
[Round "9"]
[White "guillembaches"]
[Black "Gryffindorac8"]
[Result "1-0"]
[WhiteElo "2517"]
[BlackElo "2371"]
[TimeControl "180+1"]
[EndTime "9:46:19 PST"]
[Termination "guillembaches won by resignation"]

1. d4 {[%clk 0:03:00.9]} 1... Nf6 {[%clk 0:02:59.1]} 2. Nf3 {[%clk 0:03:01.5]}
2... e6 {[%clk 0:02:57.7]} 3. Bg5 {[%clk 0:03:02.1]} 3... d5 {[%clk 0:02:55.3]}
4. Nbd2 {[%clk 0:03:02.2]} 4... Be7 {[%clk 0:02:55.7]} 5. e3 {[%clk 0:03:02.7]}
5... h6 {[%clk 0:02:53.9]} 6. Bh4 {[%clk 0:03:01.8]} 6... O-O {[%clk 0:02:53.7]}
7. Bd3 {[%clk 0:03:01.9]} 7... c5 {[%clk 0:02:49.4]} 8. c3 {[%clk 0:03:02.1]}
8... b6 {[%clk 0:02:49.1]} 9. Ne5 {[%clk 0:02:56.4]} 9... Qc7 {[%clk 0:02:28.7]}
10. f4 {[%clk 0:02:53]} 10... Ba6 {[%clk 0:02:27.3]} 11. Bxa6 {[%clk 0:02:46.8]}
11... Nxa6 {[%clk 0:02:28.2]} 12. Qe2 {[%clk 0:02:45]} 12... Nb8 {[%clk
0:02:26.1]} 13. O-O {[%clk 0:02:36.6]} 13... Nbd7 {[%clk 0:02:14.5]} 14. Rf3
{[%clk 0:02:31.6]} 14... Rfe8 {[%clk 0:01:57.4]} 15. Raf1 {[%clk 0:02:26]} 15...
Ne4 {[%clk 0:01:51.8]} 16. Nxe4 {[%clk 0:02:10]} 16... dxe4 {[%clk 0:01:42]} 17.
Rh3 {[%clk 0:02:09.7]} 17... Bxh4 {[%clk 0:01:09.2]} 18. Rxh4 {[%clk 0:02:10.6]}
18... Nf6 {[%clk 0:01:07.4]} 19. g4 {[%clk 0:02:02.7]} 19... Qe7 {[%clk
0:00:57.4]} 20. g5 {[%clk 0:01:53.6]} 20... hxg5 {[%clk 0:00:17.7]} 21. fxg5
{[%clk 0:01:50.5]} 21... Nh7 {[%clk 0:00:17.8]} 22. Rxf7 {[%clk 0:01:25.3]}
22... Qxg5+ {[%clk 0:00:10.2]} 23. Rg4 {[%clk 0:01:24.9]} 1-0

[Event "Early-Titled-Tuesday-Blitz-January-16-2024"]
[Site "Chess.com"]
[Date "2024.01.16"]
[Round "9"]
[White "Caroexpert"]
[Black "Cambek64"]
[Result "1-0"]
[WhiteElo "2567"]
[BlackElo "2448"]
[TimeControl "180+1"]
[EndTime "9:46:25 PST"]
[Termination "Caroexpert won by resignation"]

1. d4 {[%clk 0:03:00.9]} 1... c5 {[%clk 0:02:59.1]} 2. d5 {[%clk 0:02:59.9]}
2... e5 {[%clk 0:02:58.8]} 3. Nc3 {[%clk 0:02:59.4]} 3... d6 {[%clk 0:02:59.2]}
4. e4 {[%clk 0:02:59.6]} 4... Nf6 {[%clk 0:02:59.8]} 5. Nf3 {[%clk 0:02:53.3]}
5... Be7 {[%clk 0:02:57.6]} 6. Be2 {[%clk 0:02:53.5]} 6... O-O {[%clk
0:02:55.5]} 7. O-O {[%clk 0:02:54]} 7... Nbd7 {[%clk 0:02:45.7]} 8. Nd2 {[%clk
0:02:51.5]} 8... Ne8 {[%clk 0:02:44.3]} 9. Nc4 {[%clk 0:02:50.1]} 9... Nb6
{[%clk 0:02:42.3]} 10. Ne3 {[%clk 0:02:49.3]} 10... a6 {[%clk 0:02:42]} 11. a4
{[%clk 0:02:48.8]} 11... Bg5 {[%clk 0:02:38.8]} 12. g3 {[%clk 0:02:41.6]} 12...
Bxe3 {[%clk 0:02:36.8]} 13. Bxe3 {[%clk 0:02:41.3]} 13... Bh3 {[%clk 0:02:36]}
14. Re1 {[%clk 0:02:40.8]} 14... Nd7 {[%clk 0:02:35.9]} 15. f4 {[%clk
0:02:31.6]} 15... f5 {[%clk 0:02:28.4]} 16. Bd3 {[%clk 0:02:23.2]} 16... fxe4
{[%clk 0:02:18.8]} 17. Nxe4 {[%clk 0:02:22.4]} 17... Ndf6 {[%clk 0:02:11.5]} 18.
Ng5 {[%clk 0:02:21.8]} 18... Qd7 {[%clk 0:01:42]} 19. fxe5 {[%clk 0:01:54]}
19... dxe5 {[%clk 0:01:39.9]} 20. Bxc5 {[%clk 0:01:38.9]} 20... Qxd5 {[%clk
0:01:39.8]} 21. Bxh7+ {[%clk 0:01:36.6]} 21... Kh8 {[%clk 0:01:39.8]} 22. Qxd5
{[%clk 0:01:36.2]} 22... Nxd5 {[%clk 0:01:39.8]} 23. Bxf8 {[%clk 0:01:36.7]}
23... Nef6 {[%clk 0:01:38]} 24. Nxh3 {[%clk 0:01:34.5]} 24... Kxh7 {[%clk
0:01:36.6]} 25. Bc5 {[%clk 0:01:33.2]} 25... Rc8 {[%clk 0:01:35.4]} 26. b4
{[%clk 0:01:29.2]} 26... b6 {[%clk 0:01:35.7]} 27. c4 {[%clk 0:01:28.9]} 27...
bxc5 {[%clk 0:01:33.6]} 28. cxd5 {[%clk 0:01:29.1]} 28... cxb4 {[%clk
0:01:27.7]} 29. Rxe5 {[%clk 0:01:28.7]} 29... b3 {[%clk 0:01:23.1]} 30. Rb1
{[%clk 0:01:28.4]} 30... Rc3 {[%clk 0:01:19.7]} 31. Nf2 {[%clk 0:01:25.4]} 31...
Kg6 {[%clk 0:01:17]} 32. d6 {[%clk 0:01:22.2]} 32... Rc6 {[%clk 0:01:06.8]} 33.
Ne4 {[%clk 0:01:19]} 33... Rc4 {[%clk 0:01:01.3]} 34. Nxf6 {[%clk 0:01:18.4]}
34... gxf6 {[%clk 0:01:01.4]} 35. Rd5 {[%clk 0:01:18.2]} 35... b2 {[%clk
0:00:58.5]} 36. Rxb2 {[%clk 0:01:17.5]} 1-0